Workbook

Sheet ورقة1
B2: جــدول أجــور المعلمين
C5: س | D5: ش | E5: ع | F5: جملة الاستحقاقات | G5: ف | H5: ق | I5: ك | J5: الإيرادات | K5: جملة الاستقطاعات | L5: الصافى | M5: جملة الاستقطاعات قبل | N5: الصافى قبل
C6: 1523.25 | D6: 235.1 | E6: 3254.58 | F6: =SUM(C6:E6) -> 5012.93 | G6: 2101.22 | H6: 100.25 | I6: 1102.35 | J6: =ROUND(N6-L6,2) -> 0.01 | K6: =SUM(J6,M6) -> 3303.83 | L6: =FLOOR(N6,0.05) -> 1709.1 | M6: =SUM(G6:I6) -> 3303.82 | N6: =F6-M6 -> 1709.11
C7: 2654.23 | D7: 215.24 | E7: 2154.65 | F7: =SUM(C7:E7) -> 5024.12 | G7: 210.35 | H7: 215.24 | I7: 1023.25 | J7: =ROUND(N7-L7,2) -> 0.03 | K7: =SUM(J7,M7) -> 1448.87 | L7: =FLOOR(N7,0.05) -> 3575.25 | M7: =SUM(G7:I7) -> 1448.84 | N7: =F7-M7 -> 3575.28
C8: 3325.54 | D8: 5421.57 | E8: 231.2 | F8: 8978.31 | G8: 325.24 | H8: 2548.52 | I8: 1254.32 | J8: 0.03 | K8: =SUM(J8,M8) -> 4128.11 | L8: 4850.2 | M8: 4128.08 | N8: =F8-M8 -> 4850.23 | O8: الجدول الأول
C9: 5541.35 | D9: 2587.21 | E9: 2365.32 | F9: 10493.88 | G9: 5234.2 | H9: 215.15 | I9: 2598.57 | J9: 0.01 | K9: =SUM(J9,M9) -> 8047.93 | L9: 2445.95 | M9: 8047.92 | N9: =F9-M9 -> 2445.96
C10: 5412.3 | D10: 215.24 | E10: 145.25 | F10: 5772.79 | G10: 320.27 | H10: 2154.2 | I10: 725.7 | J10: 0.02 | K10: =SUM(J10,M10) -> 3200.19 | L10: 2572.6 | M10: 3200.17 | N10: =F10-M10 -> 2572.62
C11: 548.24 | D11: 5698 | E11: 2548 | F11: 8794.24 | G11: 210.21 | H11: 210.5 | I11: 1458.54 | J11: 0.04 | K11: =SUM(J11,M11) -> 1879.29 | L11: 6914.95 | M11: 1879.25 | N11: =F11-M11 -> 6914.99
C16: س | D16: ش | E16: ع | F16: جملة الاستحقاقات | G16: ف | H16: ق | I16: ك | J16: الإيرادات | K16: جملة الاستقطاعات | L16: الصافى
C17: 1523.25 | D17: 235.1 | E17: 3254.58 | F17: =SUM(C17:E17) -> 5012.93 | G17: 2101.22 | H17: 100.25 | I17: 1102.35 | J17: 0.01 | K17: =SUM(G17:J17) -> 3303.83 | L17: =F17-K17 -> 1709.1
C18: 2654.23 | D18: 215.24 | E18: 2154.65 | F18: =SUM(C18:E18) -> 5024.12 | G18: 210.35 | H18: 215.24 | I18: 1023.25 | J18: 0.03 | K18: =SUM(G18:J18) -> 1448.87 | L18: =F18-K18 -> 3575.25
C19: 3325.54 | D19: 5421.57 | E19: 231.2 | F19: 8978.31 | G19: 325.24 | H19: 2548.52 | I19: 1254.32 | J19: 0.03 | K19: 4128.11 | L19: 4850.2 | O19: الجدول الثانى
C20: 5541.35 | D20: 2587.21 | E20: 2365.32 | F20: 10493.88 | G20: 5234.2 | H20: 215.15 | I20: 2598.57 | J20: 0.01 | K20: 8047.93 | L20: 2445.95
C21: 5412.3 | D21: 215.24 | E21: 145.25 | F21: 5772.79 | G21: 320.27 | H21: 2154.2 | I21: 725.7 | J21: 0.02 | K21: 3200.19 | L21: 2572.6
C22: 548.24 | D22: 5698 | E22: 2548 | F22: 8794.24 | G22: 210.21 | H22: 210.5 | I22: 1458.54 | J22: 0.04 | K22: 1879.29 | L22: 6914.95
B25: المطلوب عمل معادلة لحساب قيم "الإيرادات" كما فى الجدول الثانى والتى تجعل الرقمين العشريين بعد العلامة فى "الصافى" يقبلا القسمة على الرقم 5 ، أى إما أن يكون الرقم الأول صفر أو خمسة
H28: وجــزاكم الله خــيراً

Sheet ورقة2

Sheet ورقة3
